[Event "34th Pula Open 2022"]
[Site "Pula"]
[Date "2022.06.24"]
[Round "8.10"]
[White "Sterck, Arno"]
[Black "Medancic, Rikard"]
[Result "1/2-1/2"]
[ECO "C55"]
[WhiteElo "2245"]
[BlackElo "2145"]
[Annotator "TA"]
[PlyCount "138"]
[EventDate "2022.06.18"]
[EventType "swiss"]
[EventCountry "CRO"]
[SourceTitle "playchess.com"]
[Source "ChessBase"]
[SourceQuality "1"]
[TimeControl "5400+30"]

{[%evp 11,138,9,11,9,17,12,18,11,25,18,19,31,34,35,30,0,32,44,66,76,78,80,117,87,118,102,101,101,127,131,139,138,135,136,137,137,137,137,125,132,134,137,143,128,124,127,115,125,156,156,150,79,153,150,183,122,205,163,158,127,218,115,120,109,109,122,121,11,12,14,15,7,7,5,18,16,18,0,108,102,122,124,134,125,158,8,38,0,25,12,66,32,42,0,0,-34,-34,-54,-56,-85,-15,-52,-52,-52,-52,-60,-60,-60,-40,-60,-60,-60,-60,-61,-8,-8,-8,-143,-8,-8,-8,-8,-8,-8,-8,-8,-8,-8,-8]} 1. e4 {[%emt 0:00:06]} e5 {[%emt 0:00:17]} 2. Nf3 {[%emt 0:00:08]} Nc6 {[%emt 0:00:07]} 3. Bc4 {[%emt 0:00:07]} Be7 {[%emt 0:00:38]} 4. O-O {[%emt 0:00:09]} Nf6 {[%emt 0:00:11]} 5. d3 {[%emt 0:00:06]} O-O {[%emt 0:00:27]} 6. Nc3 {[%emt 0:00:08]} d6 {[%emt 0:00:29]} 7. a4 {[%emt 0:00:06] C55: Two Knights: 4 d3, 4 d4 exd4 5 e5 and Max Lange Attack.} Be6 $1 {[%emt 0:02:21][%mdl 4] outshines the older 7...Bg4.} 8. Nd5 {[%emt 0:00:14]} Bxd5 {[%emt 0:01:34]} 9. exd5 {[%emt 0:00:07]} Nb8 {[%emt 0:00:03]} 10. d4 {[%emt 0:01:40] [#]} e4 $146 {[%emt 0:04:28]} ({Predecessor:} 10... Nbd7 11. a5 a6 12. Re1 exd4 13. Qxd4 Re8 14. Bd2 Bf8 15. Bg5 h6 16. Bd2 Nh7 {½-½ (37) Berry,G-Barnes,D corr 1985}) 11. Nd2 {[%emt 0:03:12]} c6 {[%emt 0:00:42]} 12. f3 {[%emt 0:09:54]} cxd5 {[%emt 0:03:44]} 13. Ba2 {[%emt 0:04:08]} Nc6 {[%emt 0:05:23]} 14. c3 {[%emt 0:01:06]} a6 {[%emt 0:04:44]} 15. Qe2 {[%emt 0:04:50][%cal Rf3e4]} e3 {[%emt 0:07:54]} 16. Qxe3 {[%emt 0:03:25]} Qa5 {[%emt 0:01:58]} 17. Bb1 {[%emt 0:02:21]} Rfe8 {[%emt 0:01:23]} 18. Qd3 {[%emt 0:07:56]} Rac8 {[%emt 0:04:25]} 19. Rf2 {[%emt 0:11:29]} Qb6 {[%emt 0:05:35][%cal Oc6d4]} 20. Bc2 {[%emt 0:11:34]} Bf8 {[%emt 0:14:05]} 21. Nf1 $1 {[%emt 0:01:44]} Re1 {[%emt 0:02:19]} 22. Rb1 {[%emt 0:01:29] And now Bg5 would win.} g6 {[%emt 0:07:36]} 23. Bg5 {[%emt 0:01:12][%csl LRe1,LRf6][%cal Bc1g5,Bg5h4,Bh4g3][%mdl 32]} Rxb1 {[%emt 0:01:32]} 24. Bxb1 {[%emt 0:00:05]} Bg7 {[%emt 0:00:32]} 25. Ne3 {[%emt 0:03:47]} Qb3 {[%emt 0:07:05]} 26. Re2 {[%emt 0:07:21]} h6 {[%emt 0:03:21]} 27. Bh4 {[%emt 0:14:07]} Kf8 {[%emt 0:06:43]} 28. Qd1 {[%emt 0:05:05]} Qxd1+ {[%emt 0:03:51]} 29. Nxd1 {[%emt 0:00:04]} b5 {[%emt 0:01:55]} 30. Bg3 {[%emt 0:00:52]} Rd8 {[%emt 0:01:27]} 31. Bd3 {[%emt 0:00:18]} (31. axb5 $142 axb5 32. h3) 31... Na7 {[%emt 0:02:58]} (31... bxa4 $142 32. Be1 (32. Bxa6 Nh5 $16) 32... Na5) 32. Ne3 $16 {[%emt 0:00:52]} Kg8 {[%emt 0:00:41]} 33. Kf1 {[%emt 0:00:41]} (33. axb5 $18 Nxb5 34. Bh4) 33... Bf8 {[%emt 0:00:20]} (33... bxa4 $16 {might work better.} 34. Bxa6 Rb8) 34. Bh4 {[%emt 0:00:11]} g5 {[%emt 0:00:31]} 35. Bg3 {[%emt 0:00:04]} Rc8 {[%emt 0:01:22]} (35... bxa4 $16 36. Bxa6 Rb8) 36. Nf5 {[%emt 0:00:48]} (36. Re1 $18) 36... bxa4 {[%emt 0:00:54]} 37. Bxa6 {[%emt 0:00:18]} Rc6 {[%emt 0:00:10]} 38. Bd3 {[%emt 0:01:32][%cal Oe2e7] 0x0.0022fb336d48dp-1022s more active pieces. A strong pair of Bishops.} a3 {[%emt 0:00:23]} 39. bxa3 {[%emt 0:00:05]} (39. Ne3 $16) 39... Rxc3 $11 {[%emt 0:00:07]} 40. Re3 {[%emt 0:05:12]} Rxa3 {[%emt 0:01:50]} 41. Nxd6 {[%emt 0:00:05][%cal Od3h7] Bh7+! is the strong threat.} Ra1+ {[%emt 0:00:41]} 42. Kf2 {[%emt 0:00:40]} Nc6 {[%emt 0:01:30]} 43. Nf5 {[%emt 0:00:20]} Ra2+ {[%emt 0:00:19]} (43... Nh5 {is interesting.} 44. Bb5 Nb4 45. Re8 Ra2+) 44. Be2 {[%emt 0:00:56]} Ra4 {[%emt 0:00:40]} (44... Bb4 $11) 45. Rc3 $16 {[%emt 0:00:19]} Ne7 {[%emt 0:00:44]} 46. Nxe7+ {[%emt 0:00:14]} Bxe7 {[%emt 0:00:03]} 47. Rc7 {[%emt 0:00:42]} Kf8 {[%emt 0:01:19] [#]} 48. Be5 {[%emt 0:00:05]} (48. Rc8+ $1 $16 Kg7 49. Be5) 48... Ra8 {[%emt 0:00:20]} 49. h3 {[%emt 0:00:42]} Rd8 {[%emt 0:00:21]} 50. Rc6 {[%emt 0:01:37]} Nd7 {[%emt 0:01:19]} (50... Ne8 $11) 51. Bc7 {[%emt 0:00:50]} Ra8 {[%emt 0:00:22]} 52. Bd3 {[%emt 0:00:44]} Bf6 {[%emt 0:00:21]} 53. Bd6+ {[%emt 0:00:37]} Kg7 {[%emt 0:00:17]} 54. Bf5 {[%emt 0:00:34]} Bxd4+ {[%emt 0:00:14]} 55. Kg3 {[%emt 0:00:08]} Ra7 {[%emt 0:01:12]} ({Better is} 55... Ne5 $17 56. Bxe5+ Bxe5+ 57. Kf2 Ra2+ 58. Rc2 Ra3) 56. Rc7 {[%emt 0:00:52]} Rxc7 {[%emt 0:00:09]} 57. Bxc7 {[%emt 0:00:04]} Be5+ {[%emt 0:00:11]} 58. Bxe5+ {[%emt 0:00:05]} Nxe5 $15 {[%emt 0:00:05][%mdl 4096] Endgame KB-KN} 59. f4 {[%emt 0:00:06]} Nc4 {[%emt 0:00:48]} 60. fxg5 {[%emt 0:00:10]} hxg5 {[%emt 0:00:09]} 61. h4 {[%emt 0:00:31]} gxh4+ {[%emt 0:00:31]} 62. Kxh4 {[%emt 0:00:04]} Ne3 {[%emt 0:00:13]} (62... Kf6 $15 63. Bb1 Ke6) 63. Bb1 $11 {[%emt 0:01:08]} Nxg2+ {[%emt 0:00:51]} 64. Kg5 {[%emt 0:00:32] [#]} (64. Kg3 $1 $11) 64... Ne3 {[%emt 0:00:24]} ({Black should try} 64... f6+ $1 $17 65. Kg4 Kf7) 65. Ba2 {[%emt 0:00:19] The position is equal.} Nc4 {[%emt 0:00:22] aiming for ...f6+.} 66. Kf5 $1 {[%emt 0:00:11]} f6 {[%emt 0:00:39] Strongly threatening ...Kf7.} (66... Kf8 $5) 67. Ke6 $1 {[%emt 0:00:39]} Nb6 {[%emt 0:00:28]} 68. Kd6 {[%emt 0:00:14]} d4 {[%emt 0:00:43] ( -> ...Na4)} 69. Kc5 {[%emt 0:00:11][%csl LRb6,LRd4]} Nd7+ {[%emt 0:00:29] Black defended with fortune.  Weighted Error Value: White=0.23 (precise) /Black=0.19 (very precise)} 1/2-1/2

[Event "34th Pula Open 2022"]
[Site "Pula"]
[Date "2022.06.24"]
[Round "8.11"]
[White "Ragger, Anna-Christina"]
[Black "Jurakic, Lukas"]
[Result "1/2-1/2"]
[ECO "D00"]
[WhiteElo "2141"]
[BlackElo "2147"]
[Annotator "TA"]
[PlyCount "143"]
[EventDate "2022.06.18"]
[EventType "swiss"]
[EventCountry "CRO"]
[SourceTitle "playchess.com"]
[Source "ChessBase"]
[SourceQuality "1"]
[TimeControl "5400+30"]

{[%evp 9,143,-5,-5,-6,0,0,2,-15,-4,-18,-15,-14,-17,-22,-20,-20,-21,-42,-41,-42,-44,-47,-35,-58,-16,-15,-15,-16,-19,-26,-31,-20,-26,-23,-10,-12,-10,-11,-10,-10,-9,-10,-9,-11,-10,-14,-10,-17,-16,-9,0,0,0,0,0,0,14,9,16,11,12,0,0,0,0,0,0,0,0,0,0,0,0,-33,-8,-14,0,0,0,0,0,0,0,0,0,0,0,0,0,0,0,0,0,0,0,0,0,0,0,0,0,-8,-8,-8,-8,-8,-8,-8,-8,-8,-8,-8,-8,-8,-8,-8,-8,-8,-8,-8,-8,-8,0,0,0,0,0,0,0,0,0,0,0,0,0,0]} 1. d4 {[%emt 0:00:03]} Nf6 {[%emt 0:00:08]} 2. Bf4 {[%emt 0:00:06]} e6 {[%emt 0:00:11]} 3. e3 {[%emt 0:00:30]} d5 {[%emt 0:00:08]} 4. Nd2 {[%emt 0:00:35]} Bd6 {[%emt 0:00:12]} 5. Bg3 {[%emt 0:00:13]} O-O {[%emt 0:00:18]} 6. Bd3 {[%emt 0:00:47] D00: 1 d4 d5: Unusual lines.} c5 {[%emt 0:00:14]} 7. c3 {[%emt 0:00:18]} Qc7 {[%emt 0:00:12]} 8. Bxd6 {[%emt 0:05:15]} Qxd6 {[%emt 0:00:06]} 9. f4 {[%emt 0:00:47]} b6 {[%emt 0:07:29] 9...cxd4 gains popularity.} 10. Ngf3 {[%emt 0:03:35]} cxd4 {[%emt 0:06:50]} 11. cxd4 {[%emt 0:07:29]} Ba6 {[%emt 0:04:13]} 12. Bxa6 {[%emt 0:12:49]} Nxa6 {[%emt 0:00:07][%cal Bb8a6,Ba6c7,Bc7e8,Be8d6,Bd6e4][%mdl 32]} 13. a3 {[%emt 0:00:17]} Rfc8 {[%emt 0:06:02]} 14. O-O {[%emt 0:02:20]} Nc7 {[%emt 0:14:32] [#]} 15. Rc1 $146 {[%emt 0:02:13]} ({Predecessor:} 15. Ne5 Nce8 16. Qa4 Qc7 17. b4 Nd6 18. Qb3 Qc3 19. Rfd1 Nfe4 20. Qxc3 Rxc3 21. Nxe4 Nxe4 {0-1 (42) Livaic,L (2492)-Svane,R (2608) Chess.com INT 2020}) 15... Nce8 {[%emt 0:02:09]} 16. Qa4 {[%emt 0:04:59]} Qd7 {[%emt 0:08:09]} 17. Qxd7 {[%emt 0:02:30]} Nxd7 {[%emt 0:00:07]} 18. Ne5 {[%emt 0:00:09]} Ndf6 {[%emt 0:06:14]} 19. Nc6 {[%emt 0:07:51]} Kf8 {[%emt 0:00:49] Against Ne7} 20. Rc3 {[%emt 0:00:21]} Nd6 {[%emt 0:02:03][%cal Od6c4]} 21. Rfc1 $1 {[%emt 0:00:47]} Nfe4 {[%emt 0:07:37]} 22. Nxe4 {[%emt 0:00:28]} Nxe4 {[%emt 0:00:18]} 23. R3c2 {[%emt 0:00:25]} Nd6 {[%emt 0:03:56]} 24. Kf2 {[%emt 0:04:10]} Ke8 {[%emt 0:02:19]} 25. a4 {[%emt 0:01:35]} f6 {[%emt 0:03:20]} 26. Nb4 $1 {[%emt 0:17:48]} Kd7 {[%emt 0:02:15]} 27. g4 {[%emt 0:02:07]} a5 {[%emt 0:02:34]} 28. Nd3 {[%emt 0:00:25]} Rxc2+ {[%emt 0:01:24]} 29. Rxc2 $11 {[%emt 0:00:03][%mdl 4096] Endgame KRN-KRN} Rb8 {[%emt 0:03:37]} 30. Kf3 {[%emt 0:01:38]} Ne4 {[%emt 0:01:41]} 31. f5 {[%emt 0:00:45]} exf5 {[%emt 0:01:53]} 32. gxf5 {[%emt 0:00:02]} Kd6 {[%emt 0:01:22]} 33. b4 {[%emt 0:01:43] [#] Black must now prevent b5.} axb4 {[%emt 0:05:49]} 34. Nxb4 {[%emt 0:00:08]} Ng5+ $1 {[%emt 0:00:54]} 35. Kf4 {[%emt 0:00:09]} Re8 $1 {[%emt 0:03:30]} 36. Rc3 {[%emt 0:04:19]} h5 {[%emt 0:00:23] [#] Strongly threatening ...Re4+.} 37. Rc6+ {[%emt 0:07:48]} Kd7 {[%emt 0:00:06]} 38. Rxb6 {[%emt 0:00:03]} Re4+ {[%emt 0:01:29]} 39. Kg3 {[%emt 0:00:01]} Rxe3+ {[%emt 0:00:20]} 40. Kf2 {[%emt 0:00:17]} Ra3 {[%emt 0:00:52]} 41. Nxd5 {[%emt 0:01:50]} Rxa4 {[%emt 0:01:02]} 42. Nf4 {[%emt 0:01:24] The position is equal.} Rxd4 {[%emt 0:02:11]} 43. Nxh5 {[%emt 0:00:53]} Rh4 {[%emt 0:01:01] Threatens to win with ...Kc7.} 44. Nxg7 {[%emt 0:00:02]} Rxh2+ {[%emt 0:00:07]} 45. Kg3 {[%emt 0:00:09]} Ra2 {[%emt 0:00:58]} 46. Kg4 {[%emt 0:01:44]} Ke7 {[%emt 0:01:04]} 47. Kh5 {[%emt 0:01:27]} Ne4 {[%emt 0:01:07]} 48. Rb7+ {[%emt 0:01:22]} Kf8 {[%emt 0:00:15]} 49. Ne6+ {[%emt 0:00:02]} Ke8 {[%emt 0:00:23]} 50. Rb8+ {[%emt 0:00:57]} Ke7 {[%emt 0:00:31]} 51. Nf4 {[%emt 0:00:05]} Ra1 {[%emt 0:00:50]} 52. Rb7+ {[%emt 0:00:18]} Ke8 {[%emt 0:00:31]} 53. Rb4 {[%emt 0:01:00]} Rh1+ {[%emt 0:00:21]} 54. Kg6 {[%emt 0:01:22]} Rg1+ {[%emt 0:00:09]} 55. Kh6 {[%emt 0:00:14]} Nd6 {[%emt 0:00:22]} 56. Rb8+ {[%emt 0:00:22]} Kf7 {[%emt 0:00:12]} 57. Kh5 {[%emt 0:01:13]} Rg5+ {[%emt 0:00:24]} 58. Kh4 $1 {[%emt 0:00:06]} Rxf5 {[%emt 0:00:47]} 59. Kg4 {[%emt 0:00:27]} Ra5 {[%emt 0:00:38]} 60. Rb3 {[%emt 0:00:55]} Ra7 {[%emt 0:00:36]} 61. Rd3 {[%emt 0:00:23]} Nc4 {[%emt 0:00:17] ...Ne5+ is the strong threat.} 62. Rh3 {[%emt 0:00:25] Threatening mate with Rh7+.} Ra5 {[%emt 0:00:46]} 63. Rh7+ {[%emt 0:00:22]} Kg8 {[%emt 0:00:05]} 64. Rc7 {[%emt 0:00:19]} Ra4 {[%emt 0:00:49]} 65. Kf5 {[%emt 0:02:56]} Ne3+ {[%emt 0:00:12]} 66. Kg6 {[%emt 0:00:48][%cal Rc7c8]} Kf8 {[%emt 0:00:45]} 67. Ne6+ {[%emt 0:00:44]} Ke8 {[%emt 0:00:05]} 68. Ng7+ {[%emt 0:00:54]} Kd8 $1 {[%emt 0:00:11]} 69. Ne6+ {[%emt 0:00:03]} Ke8 {[%emt 0:00:05]} 70. Ng7+ {[%emt 0:00:02]} Kd8 $1 {[%emt 0:00:10]} 71. Ne6+ {[%emt 0:00:03]} Ke8 {[%emt 0:00:04]} 72. Ng7+ {[%emt 0:00:03] Weighted Error Value: White=0.03 (flawless) /Black=0.02 (flawless)} 1/2-1/2

[Event "34th Pula Open 2022"]
[Site "Pula"]
[Date "2022.06.24"]
[Round "8.12"]
[White "Terryn, Ezra"]
[Black "Cvitan, Ena"]
[Result "0-1"]
[ECO "B22"]
[WhiteElo "2132"]
[BlackElo "2251"]
[Annotator "TA"]
[PlyCount "52"]
[EventDate "2022.06.18"]
[EventType "swiss"]
[EventCountry "CRO"]
[SourceTitle "playchess.com"]
[Source "ChessBase"]
[SourceQuality "1"]
[TimeControl "5400+30"]

{[%evp 13,52,14,6,0,8,0,6,0,7,-67,-25,-81,-74,-88,-77,-69,-64,-120,-40,-125,-116,-228,-236,-208,-218,-223,-215,-229,-225,-333,-348,-350,-289,-284,-263,-268,-273,-265,-266,-624,-616]} 1. e4 {[%emt 0:04:41]} c5 {[%emt 0:00:07]} 2. d4 {[%emt 0:03:52]} cxd4 {[%emt 0:00:12]} 3. c3 {[%emt 0:00:05]} Nf6 {[%emt 0:00:08]} 4. e5 {[%emt 0:00:02]} Nd5 {[%emt 0:00:10]} 5. cxd4 {[%emt 0:00:05]} d6 {[%emt 0:00:42]} 6. Bc4 {[%emt 0:03:51]} e6 {[%emt 0:00:07]} 7. Nf3 {[%emt 0:02:29]} Be7 {[%emt 0:00:07]} 8. O-O {[%emt 0:00:27] B22: Sicilian: 2 c3.} O-O {[%emt 0:00:06]} 9. Re1 {[%emt 0:03:14]} b6 {[%emt 0:05:04]} 10. Qe2 {[%emt 0:08:16] The position is equal.} Bb7 {[%emt 0:10:15] [#]} 11. Nbd2 $146 {[%emt 0:02:51]} (11. Rd1 $11) ({Predecessor:} 11. Bxd5 Bxd5 12. Nc3 dxe5 13. Nxd5 Qxd5 14. dxe5 Nd7 15. Bg5 Bxg5 16. Red1 h6 17. Rxd5 exd5 {1-0 (50) Jenni,F (2456)-Pavlidis,A (2536) Chess.com INT 2020}) 11... dxe5 {[%emt 0:08:53]} (11... Nf4 $5 {[%cal Rf4e2]} 12. Qe3 dxe5 $15) 12. dxe5 {[%emt 0:04:49]} (12. Nxe5 $11 Nc6 13. Ndf3) 12... Nf4 $1 $17 {[%emt 0:01:10]} 13. Qe3 {[%emt 0:07:38] [#]} Ng6 {[%emt 0:13:40] Black is more active.} 14. b3 {[%emt 0:07:39]} Bc5 {[%emt 0:04:09]} 15. Qc3 {[%emt 0:02:10]} (15. Qe2 $1 $15) 15... Nd7 {[%emt 0:16:14]} ({Black should try} 15... b5 $17 {...Qb6 is the strong threat.} 16. Bf1 (16. Bxb5 $2 Qb6 $19) 16... Qb6) 16. Bb2 {[%emt 0:00:38]} (16. b4 $1 $15 Be7 17. Bb2) 16... Rc8 $36 {[%emt 0:00:13][%cal Ob6b5][%mdl 2048] Hoping for ...b5! Black is on the roll.} 17. b4 {[%emt 0:06:02] [#]} (17. a4 $17) 17... Bxf2+ $1 $19 {[%emt 0:03:03][%mdl 512]} 18. Kxf2 {[%emt 0:00:26] Strongly threatening Qd3.} b5 $1 {[%emt 0:00:04]} 19. Qd4 {[%emt 0:08:12]} bxc4 {[%emt 0:00:31]} 20. Rad1 {[%emt 0:05:10]} Qb6 {[%emt 0:03:39]} 21. Rc1 {[%emt 0:03:25]} (21. Qxb6 {was worth a try.} Nxb6 22. Ne4) 21... Nf4 {[%emt 0:05:26]} ({Worse is} 21... Qxb4 22. Nxc4 Rfd8 23. Nd6 Qxd4+ 24. Bxd4 (24. Nxd4 $2 {is the wrong capture.} Rxc1 25. Rxc1 Bd5 $19) 24... Rxc1 25. Rxc1 Bxf3 26. gxf3 $19) 22. Rxc4 {[%emt 0:05:24]} Rxc4 {[%emt 0:03:26] Really sharp!} 23. Nxc4 {[%emt 0:00:07]} Nd3+ {[%emt 0:00:28]} 24. Ke2 {[%emt 0:01:13]} Qxd4 {[%emt 0:01:07]} 25. Bxd4 {[%emt 0:00:05]} Nxe1 {[%emt 0:00:10]} 26. Nxe1 {[%emt 0:00:50]} (26. Kxe1 Bd5 27. Ne3) 26... Ba6 {[%emt 0:00:20] White got outplayed after the opening.  Weighted Error Value: White=0.56/Black=0.09 (flawless)} 0-1

[Event "34th Pula Open 2022"]
[Site "Pula"]
[Date "2022.06.25"]
[Round "9.1"]
[White "Pastar, Slaven"]
[Black "Zufic, Miroslav"]
[Result "1/2-1/2"]
[ECO "A30"]
[WhiteElo "2300"]
[BlackElo "2384"]
[Annotator "TA"]
[PlyCount "68"]
[EventDate "2022.06.18"]
[EventType "swiss"]
[EventCountry "CRO"]
[SourceTitle "playchess.com"]
[Source "ChessBase"]
[SourceQuality "1"]
[TimeControl "5400+30"]

{[%evp 19,68,16,21,22,31,30,44,39,50,30,37,35,42,35,27,8,35,33,31,25,20,-8,0,-9,-8,-33,0,0,8,10,2,0,2,2,2,2,2,2,6,0,27,0,0,0,0,0,0,0,0,0,0]} 1. Nf3 {[%emt 0:00:03]} Nf6 {[%emt 0:00:20]} 2. g3 {[%emt 0:00:43]} b6 {[%emt 0:01:43]} 3. Bg2 {[%emt 0:00:48]} Bb7 {[%emt 0:00:02]} 4. b3 {[%emt 0:03:39]} g6 {[%emt 0:00:06]} 5. Bb2 {[%emt 0:00:05]} Bg7 {[%emt 0:00:06]} 6. c4 {[%emt 0:00:45]} c5 {[%emt 0:00:06]} 7. d4 {[%emt 0:02:36]} cxd4 {[%emt 0:00:30]} 8. Qxd4 {[%emt 0:01:08]} d6 {[%emt 0:01:15]} 9. O-O {[%emt 0:02:18]} Nbd7 {[%emt 0:09:35][%cal Bb8d7,Bd7f6,Bf6e4][%mdl 32]} 10. Nc3 {[%emt 0:08:52]} O-O {[%emt 0:07:04]} 11. Qd2 {[%emt 0:00:48] A30: Symmetrical English: Double Fianchetto and Hedgehog.} Ne4 {[%emt 0:08:55]} 12. Nxe4 {[%emt 0:01:58]} Bxe4 {[%emt 0:00:05]} 13. Bxg7 {[%emt 0:03:37] White is slightly better.} Kxg7 {[%emt 0:03:25] [#]} 14. Ne1 $146 {[%emt 0:02:36]} ({Predecessor:} 14. Qd4+ Nf6 15. Rfd1 Qc7 16. g4 h6 17. h4 e5 18. Qxd6 Qxd6 19. Rxd6 Nxg4 20. Nxe5 Bxg2 21. Nxg4 {1-0 (68) Urban,K (2453)-Schmidt,W (2382) Police 2012}) 14... Nf6 {[%emt 0:05:38]} 15. Bxe4 {[%emt 0:00:59]} Nxe4 {[%emt 0:00:02]} 16. Qd4+ {[%emt 0:00:45]} Nf6 {[%emt 0:00:02]} 17. Ng2 {[%emt 0:04:35]} Qc7 {[%emt 0:17:47]} 18. Ne3 {[%emt 0:03:06]} Kg8 {[%emt 0:02:04]} 19. Nd5 {[%emt 0:02:16]} Nxd5 {[%emt 0:05:19]} 20. cxd5 {[%emt 0:01:44]} Rfc8 {[%emt 0:05:15]} 21. Qe3 {[%emt 0:03:50]} Qb7 {[%emt 0:01:53]} 22. Rad1 {[%emt 0:06:19]} (22. Rac1 {with more complications.} Qxd5 23. Qxe7 Re8 24. Qf6) 22... Rc5 {[%emt 0:04:22]} (22... Rc2 $5 {[%cal Rc2a2]}) 23. Rd4 {[%emt 0:02:44]} Rxd5 {[%emt 0:02:13]} 24. Rxd5 {[%emt 0:00:12]} Qxd5 {[%emt 0:00:02]} 25. Qxe7 $11 {[%emt 0:00:18][%mdl 4096] Endgame KQR-KQR} a5 {[%emt 0:06:51][%cal Ba7a5,Ba5a4][%mdl 32]} 26. Rc1 {[%emt 0:04:36]} Qd2 {[%emt 0:02:38][%csl LRa2,LRc1]} 27. Rc7 {[%emt 0:07:39]} Rf8 {[%emt 0:01:17]} 28. Rb7 {[%emt 0:02:20]} Qxa2 {[%emt 0:02:02]} 29. Rxb6 {[%emt 0:03:06]} Qb1+ {[%emt 0:00:15]} 30. Kg2 {[%emt 0:00:07]} a4 {[%emt 0:00:02] The position is equal.} 31. Qxd6 {[%emt 0:02:15]} Qe4+ {[%emt 0:01:53]} 32. Kg1 Qb1+ {[%emt 0:01:54]} 33. Kg2 {[%emt 0:02:35]} Qe4+ {[%emt 0:00:00]} 34. Kg1 {[%emt 0:00:07]} Qb1+ {[%emt 0:00:00] Weighted Error Value: White=0.05 (flawless) /Black=0.04 (flawless)} 1/2-1/2

[Event "34th Pula Open 2022"]
[Site "Pula"]
[Date "2022.06.25"]
[Round "9.3"]
[White "Nikcevic, Nebojsa"]
[Black "Stankovic, Boris"]
[Result "1-0"]
[ECO "E60"]
[WhiteElo "2387"]
[BlackElo "2287"]
[Annotator "TA"]
[PlyCount "111"]
[EventDate "2022.06.18"]
[EventType "swiss"]
[EventCountry "CRO"]
[SourceTitle "playchess.com"]
[Source "ChessBase"]
[SourceQuality "1"]
[TimeControl "5400+30"]

{[%evp 9,111,36,42,12,24,16,30,24,25,22,48,37,51,0,17,16,15,-22,0,0,0,0,12,0,-10,-4,0,0,0,0,0,0,0,0,27,39,27,0,0,0,46,0,50,15,52,59,42,41,94,90,126,112,116,114,127,130,138,133,139,133,171,176,179,169,201,133,122,118,103,78,60,48,103,77,70,50,74,53,388,309,543,510,666,564,1400,5619,4133,5159,5069,4622,2116,3508,5612,5608,5206,5036,1927,1879,29965,29966,29982,29974,5114,1768]} 1. d4 {[%emt 0:00:04]} Nf6 {[%emt 0:04:55]} 2. c4 {[%emt 0:01:57]} g6 {[%emt 0:00:04]} 3. f3 {[%emt 0:00:04]} Bg7 {[%emt 0:00:05]} 4. e4 {[%emt 0:00:06]} d6 {[%emt 0:00:16]} 5. Ne2 {[%emt 0:01:27]} O-O {[%emt 0:00:45]} 6. Bg5 {[%emt 0:00:49] E60: King's Indian: Unusual lines and Fianchetto Variation without Nc3.} c5 {[%emt 0:01:43]} 7. d5 {[%emt 0:00:32]} Qb6 {[%emt 0:13:26][%cal Of6e4]} 8. Bc1 {[%emt 0:00:47] White has an edge.} e6 {[%emt 0:01:56]} 9. Nec3 $1 {[%emt 0:02:34] [#]} Nh5 $146 {[%emt 0:20:54]} ({Predecessor:} 9... Ne8 10. Be2 f5 11. O-O Qd8 12. Bd2 fxe4 13. fxe4 Rxf1+ 14. Qxf1 Nd7 15. dxe6 Bd4+ 16. Kh1 Ne5 17. e7 Qxe7 18. Nd5 Qg7 19. Nbc3 Bg4 20. Bg5 {½-½ (20) O'Hare,C (2450)-Novak,V (2449) ICCF email 2016}) 10. g4 {[%emt 0:10:18]} Nf6 {[%emt 0:00:57][%cal Bh5f6,Bf6d7,Bd7e5][%mdl 32]} 11. Na3 {[%emt 0:03:36]} (11. Be2 $14) 11... a6 {[%emt 0:16:13]} 12. Nc2 {[%emt 0:10:54]} exd5 {[%emt 0:06:46]} 13. exd5 {[%emt 0:00:07]} Re8+ {[%emt 0:02:23]} (13... Qd8 $5 {[%cal Rf6g4]}) 14. Kf2 {[%emt 0:05:03]} Qd8 {[%emt 0:02:59][%cal Of6g4]} 15. h3 {[%emt 0:01:37]} Nfd7 {[%emt 0:05:21][%cal Ob7b5]} 16. Bf4 {[%emt 0:08:34]} Ne5 {[%emt 0:03:27]} 17. Qd2 {[%emt 0:02:41]} f5 {[%emt 0:00:34][%cal Rf5g4]} 18. g5 {[%emt 0:01:53]} Nbd7 {[%emt 0:02:13][%cal Ob7b5]} 19. a4 {[%emt 0:00:41] Prevents b5.} Qa5 {[%emt 0:01:46]} 20. Nd1 {[%emt 0:04:16]} Qxd2+ {[%emt 0:00:51]} 21. Bxd2 {[%emt 0:00:10]} Nb6 {[%emt 0:04:37]} 22. b3 {[%emt 0:03:33]} f4 {[%emt 0:01:22]} 23. Ra2 {[%emt 0:03:50]} Bf5 {[%emt 0:02:03][%cal Oe5f3]} 24. Ne1 {[%emt 0:06:27]} Re7 {[%emt 0:03:00]} (24... Rf8 $11 {feels stronger.}) 25. h4 {[%emt 0:16:21]} (25. Bxf4 $14 Rf8 26. Re2) 25... Nbd7 {[%emt 0:01:06]} (25... Rae8 $11 26. Bxf4 Nexc4 $1 27. Bxc4 Bd4+ 28. Kg2 Rxe1 29. Rxe1 Rxe1) 26. Bh3 {[%emt 0:02:32]} Rf8 {[%emt 0:00:10]} 27. Bxf5 {[%emt 0:00:16]} Rxf5 {[%emt 0:00:18]} 28. Nc3 {[%emt 0:00:46] Inhibits b5.} h6 {[%emt 0:01:54] [#]} ({Better is} 28... Nf7 $14) 29. gxh6 $1 $16 {[%emt 0:03:37]} Bxh6 {[%emt 0:00:01]} 30. Ne4 {[%emt 0:00:13]} Nf7 {[%emt 0:00:38]} 31. Nd3 {[%emt 0:00:11]} Nf6 {[%emt 0:01:20]} 32. Nxf6+ {[%emt 0:01:08]} Rxf6 {[%emt 0:00:01]} 33. Raa1 {[%emt 0:00:21]} Rf5 {[%emt 0:01:50]} 34. Rae1 {[%emt 0:01:23]} Kf8 {[%emt 0:00:44]} 35. Rxe7 {[%emt 0:00:40]} Kxe7 {[%emt 0:00:01]} 36. Re1+ {[%emt 0:00:33]} Ne5 {[%emt 0:00:44]} 37. Bc3 {[%emt 0:04:27][%cal Rc3e5]} Bg7 {[%emt 0:00:33]} 38. Bxe5 {[%emt 0:00:40] White is more active.} Bxe5 {[%emt 0:00:32]} 39. Nxe5 {[%emt 0:02:26]} dxe5 {[%emt 0:00:01][%mdl 4096] Endgame KR-KR} 40. Rg1 {[%emt 0:00:09]} Rf6 {[%emt 0:00:43]} (40... Kf6 $14) 41. Ke2 {[%emt 0:00:16]} Rb6 {[%emt 0:00:33]} 42. a5 $1 {[%emt 0:02:52]} Rxb3 {[%emt 0:00:39]} 43. Rxg6 {[%emt 0:00:05] Strongly threatening h5.} Re3+ $2 {[%emt 0:00:21][%mdl 8192] This move loses the game for Black.} (43... Rc3 $14) 44. Kf2 $18 {[%emt 0:00:20] Black must now prevent h5.} Rc3 $2 {[%emt 0:00:26] [#]} (44... Kf7 {was worth a try.} 45. Rb6 Ra3) 45. h5 $1 {[%emt 0:00:23][%cal Bh4h5,Bh5h6,Bh6h7][%mdl 32] h6 is the strong threat.} Kf7 {[%emt 0:00:45]} 46. Rb6 {[%emt 0:00:53]} Rxc4 {[%emt 0:00:21]} 47. Rxb7+ {[%emt 0:00:04]} Kf6 {[%emt 0:00:18]} 48. h6 {[%emt 0:00:55] White wants to mate with h7.} Rc2+ {[%emt 0:00:41]} 49. Ke1 {[%emt 0:00:31]} Rh2 {[%emt 0:00:57]} 50. h7 {[%emt 0:00:39]} e4 {[%emt 0:00:01]} 51. d6 {[%emt 0:00:36]} Rh1+ {[%emt 0:00:42]} 52. Ke2 {[%emt 0:00:14]} Rh2+ {[%emt 0:00:21]} 53. Kf1 {[%emt 0:00:05] d7 would kill now.} Ke6 {[%emt 0:01:08]} 54. d7 {[%emt 0:00:04]} Rxh7 {[%emt 0:00:05] [#]} 55. d8=Q $1 {[%emt 0:00:28]} Rxb7 {[%emt 0:00:06]} 56. fxe4 {[%emt 0:00:30] Weighted Error Value: White=0.08 (flawless) /Black=0.53} (56. Qc8+ $142 Rd7 57. fxe4) 1-0